fUSD/lending_fUSD_20260503
["ID","MTS","AMOUNT","RATE_DAILY","PERIOD"]
[421523598,1777818659000,5000.01,0.000107,2]
[421523597,1777818659000,5000.01,0.000107,2]
[421523600,1777818665000,5000.01,0.000115,2]
[421523603,1777818665000,45092.33982207,9.04e-05,2]
[421523602,1777818665000,800.81694565,9.04e-05,2]
[421523601,1777818665000,4199.19305435,0.000115,2]
[421523604,1777818668000,2151.45397,7.945e-05,2]
[421523606,1777818850000,-184.278472,0.00014353,2]
[421523607,1777818901000,1337.77599962,0.00012,2]
[421523608,1777818924000,152.0,0.00014241,7]
[421523610,1777818925000,152.0,0.00014245,7]
[421523609,1777818925000,152.0,0.00014245,7]
[421523611,1777818930000,160.19,0.00013445,2]
[421523612,1777818937000,1000.0,0.00025944,120]
[421523620,1777819136000,1600.0,0.00027337,120]
[421523623,1777819215000,936.74504196,0.00014346,2]
[421523622,1777819215000,-1305.00197267,0.00014353,7]
[421523624,1777819215000,300.0,0.00014352,2]
[421523626,1777819461000,-4276.35452537,0.00013498,5]
[421523628,1777819691000,-273.77599962,0.00013498,5]
[421523631,1777819693000,-47.55199924,0.00013498,2]
[421523629,1777819693000,-273.77599962,0.00013498,2]
[421523630,1777819693000,-226.22400038,0.00013498,2]
[421523633,1777819693000,-81.79092638,0.00013498,2]
[421523632,1777819693000,-191.98507324,0.00013498,2]
[421523634,1777819693000,-68.20907362,0.00013498,2]
[421523635,1777819693000,-205.566926,0.00013733,2]
[421523636,1777819693000,-273.77599962,0.00013733,2]
[421523637,1777819693000,-41.54406621,0.00013733,2]
[421523641,1777819694000,-250.0,0.00014848,2]
[421523640,1777819694000,-150.0,0.00014578,2]
[421523639,1777819694000,-421.15510861,0.00014495,2]
[421523638,1777819694000,290.31,0.0002963,120]
[421523649,1777819695000,-150.0,0.00018222,2]
[421523648,1777819695000,-163.2371,0.00017941,2]
[421523647,1777819695000,-1200.0,0.0001794,2]
[421523642,1777819695000,-500.0,0.00014848,2]
[421523646,1777819695000,-2896.73344419,0.00016451,2]
[421523644,1777819695000,-421.37,0.000151,2]
[421523652,1777819695000,-500.0,0.000192,7]
[421523643,1777819695000,-250.0,0.00014848,2]
[421523645,1777819695000,-160.19,0.00016134,2]
[421523651,1777819695000,-160.19,0.00018823,2]
[421523650,1777819695000,-491.9060975,0.00018465,2]
[421523654,1777819695000,-152.0,0.00019803,7]
[421523656,1777819695000,-152.0,0.00020001,7]
[421523655,1777819695000,-152.0,0.00020001,7]
[421523657,1777819695000,-152.0,0.00020021,7]
[421523658,1777819695000,-152.0,0.00020021,7]
[421523659,1777819695000,-152.0,0.00020021,7]
[421523662,1777819695000,-166.33,0.00020759,2]
[421523660,1777819695000,-268.32917427,0.00020031,2]
[421523661,1777819695000,-156.42904034,0.00020548,10]
[421523663,1777819695000,-27.85022385,0.00020922,2]
[421523653,1777819695000,-1680.0,0.00019672,2]
[421523664,1777819696000,290.31,0.00028945,120]
[421523665,1777819696000,290.31,0.00030096,120]
[421523667,1777819696000,-122.77599962,0.00013925,2]
[421523669,1777819696000,-151.0,0.00013925,2]
[421523668,1777819696000,-28.22400038,0.00013925,2]
[421523670,1777819696000,-94.55199924,0.00013925,2]
[421523666,1777819696000,-151.0,0.00013925,2]
[421523671,1777819712000,5718.829122,0.00026849,120]
[421523779,1777820010000,-562.25,0.00012608,2]
[421523778,1777820010000,562.25,0.00011977,2]
[421523780,1777820010000,-562.25,0.00013238,2]
[421523781,1777820010000,-562.25,0.00013869,2]
[421523782,1777820010000,-871.11571422,0.00013916,2]
[421523785,1777820010000,-318.0,0.00013916,2]
[421523784,1777820010000,305.0,0.00011977,2]
[421523786,1777820010000,-143.81137551,0.00013916,2]
[421523788,1777820010000,-18.0,0.00013924,2]
[421523787,1777820010000,-300.0,0.00013924,2]
[421523789,1777820010000,-318.0,0.00013924,2]
[421523783,1777820010000,-318.0,0.00013916,2]
[421523801,1777820011000,-562.25,0.00014499,2]
[421523805,1777820011000,-250.0,0.00015318,2]
[421523797,1777820011000,-151.0,0.00013925,2]
[421523798,1777820011000,-151.0,0.00013925,2]
[421523804,1777820011000,-300.0,0.00015318,2]
[421523802,1777820011000,-562.25,0.00015129,2]
[421523795,1777820011000,-151.0,0.00013925,2]
[421523794,1777820011000,-151.0,0.00013925,2]
[421523792,1777820011000,-250.0,0.00013925,2]
[421523791,1777820011000,-459.0,0.00013924,2]
[421523790,1777820011000,-318.0,0.00013924,2]
[421523796,1777820011000,-151.0,0.00013925,2]
[421523799,1777820011000,-151.0,0.00013925,2]
[421523793,1777820011000,-56.44800076,0.00013925,2]
[421523803,1777820011000,-420.0,0.00015256,2]
[421523814,1777820011000,-823.0,0.00018314,2]
[421523817,1777820011000,-1020.0,0.00020065,2]
[421523816,1777820011000,-562.25,0.00019542,2]
[421523815,1777820011000,-562.25,0.00018912,2]
[421523813,1777820011000,-562.25,0.00018281,2]
[421523811,1777820011000,-562.25,0.00017651,2]
[421523800,1777820011000,-300.58559612,0.00013925,2]
[421523810,1777820011000,-562.25,0.00017021,2]
[421523807,1777820011000,-562.25,0.0001639,2]
[421523809,1777820011000,-587.0,0.00016715,2]
[421523808,1777820011000,-250.0,0.00016462,2]
[421523806,1777820011000,-562.25,0.0001576,2]
[421523812,1777820011000,-150.0,0.00018222,2]
[421523863,1777820012000,-166.8,0.00023998,2]
[421523865,1777820012000,-160.19,0.00024201,2]
[421523856,1777820012000,-1000.0,0.000232,7]
[421523854,1777820012000,-4000.0,0.00023058,2]
[421523855,1777820012000,-166.66,0.00023104,30]
[421523843,1777820012000,-501.49121853,0.00022442,2]
[421523849,1777820012000,-5022.46,0.00022562,2]
[421523857,1777820012000,-188.98,0.00023245,2]
[421523841,1777820012000,-162.45035992,0.00022281,2]
[421523852,1777820012000,-166.66,0.00022655,30]
[421523844,1777820012000,-216.00555089,0.00022442,2]
[421523848,1777820012000,-784.57,0.00022562,2]
[421523864,1777820012000,-150.0,0.00024016,2]
[421523862,1777820012000,-562.25,0.00023955,2]
[421523860,1777820012000,-166.66,0.00023552,30]
[421523846,1777820012000,-4000.0,0.00022509,2]
[421523858,1777820012000,-562.25,0.00023324,2]
[421523861,1777820012000,-4000.0,0.00023607,2]
[421523868,1777820012000,-188.98,0.00024468,2]
[421523866,1777820012000,-1600.0,0.00024299,2]
[421523876,1777820012000,-168.7,0.00026723,2]
[421523871,1777820012000,-56045.0830206,0.00025298,2]
[421523869,1777820012000,-3323.5170855,0.00025281,2]
[421523874,1777820012000,-188.98,0.00025692,2]
[421523872,1777820012000,-541.27,0.00025298,2]
[421523870,1777820012000,-566.4106673,0.00025298,2]
[421523859,1777820012000,-275.65,0.00023363,2]
[421523850,1777820012000,-1621.77,0.00022562,2]
[421523847,1777820012000,-5000.0,0.00022511,2]
[421523845,1777820012000,-398.69653065,0.00022442,2]
[421523818,1777820012000,-562.25,0.00020172,2]
[421523819,1777820012000,-562.25,0.00020803,2]
[421523821,1777820012000,-910.1,0.00020951,2]
[421523822,1777820012000,-5826.05,0.00020951,2]
[421523823,1777820012000,-1881.25,0.00020951,2]
[421523824,1777820012000,-3064.68222722,0.00021076,2]
[421523820,1777820012000,-122.14977615,0.00020922,2]
[421523826,1777820012000,-562.25,0.00021433,2]
[421523827,1777820012000,-160.19,0.00021512,2]
[421523825,1777820012000,-166.66,0.00021309,2]
[421523829,1777820012000,-152.0,0.00021604,7]
[421523828,1777820012000,-152.0,0.00021597,7]
[421523853,1777820012000,-562.25,0.00022694,2]
[421523831,1777820012000,-152.0,0.0002161,7]
[421523835,1777820012000,-4000.0,0.0002196,2]
[421523832,1777820012000,-152.0,0.0002161,7]
[421523830,1777820012000,-152.0,0.00021604,7]
[421523834,1777820012000,-166.66,0.00021758,2]
[421523836,1777820012000,-188.98,0.00022022,2]
[421523838,1777820012000,-562.25,0.00022064,2]
[421523837,1777820012000,-2000.0,0.00022048,2]
[421523839,1777820012000,-166.66,0.00022206,30]
[421523840,1777820012000,-735.02800513,0.00022235,2]
[421523842,1777820012000,-6501.96,0.00022304,2]
[421523851,1777820012000,-4534.52,0.00022631,2]
[421523873,1777820012000,-185.91,0.00025583,2]
[421523833,1777820012000,-152.0,0.0002161,7]
[421523875,1777820012000,-1000.0,0.00025944,2]
[421523867,1777820012000,-152.37,0.00024349,2]
[421523879,1777820012000,-1500.0,0.000271,7]
[421523910,1777820012000,-200.0,0.00030353,3]
[421523911,1777820012000,-1600.0,0.00030374,120]
[421523906,1777820012000,-500.0,0.00029973,5]
[421523907,1777820012000,-38017.49703123,0.0003,10]
[421523904,1777820012000,-500.57558774,0.00029973,5]
[421523912,1777820012000,-1000.0,0.00030521,5]
[421523916,1777820012000,-188.98,0.00030586,2]
[421523918,1777820012000,-10625.873819,0.00030748,120]
[421523878,1777820012000,-188.98,0.00026915,2]
[421523919,1777820012000,-500.0,0.00030973,5]
[421523922,1777820012000,-4277.31344178,0.00031,2]
[421523926,1777820012000,-363.80656971,0.00031068,5]
[421523920,1777820012000,-566.4106673,0.00030982,2]
[421523923,1777820012000,-260.28,0.00031,120]
[421523924,1777820012000,-1122.91719053,0.00031068,2]
[421523917,1777820012000,-471.10592492,0.00030636,5]
[421523925,1777820012000,-1500.0,0.00031068,5]
[421523927,1777820012000,-1500.0,0.00031068,5]
[421523928,1777820012000,-2000.0,0.000311,7]
[421523931,1777820012000,-1000.0,0.00031521,5]
[421523933,1777820012000,-949.05656584,0.00031616,5]
[421523929,1777820012000,-6501.96,0.00031225,2]
[421523935,1777820012000,-260.28,0.00031822,120]
[421523930,1777820012000,-150.0,0.00031301,2]
[421523932,1777820012000,-434.60259387,0.00031616,5]
[421523934,1777820012000,-188.98,0.00031809,2]
[421523936,1777820012000,-500.0,0.00031843,60]
[421523909,1777820012000,-150.0,0.00030142,2]
[421523905,1777820012000,-500.0,0.00029973,5]
[421523921,1777820012000,-56045.0830206,0.00030982,2]
[421523915,1777820012000,-1000.0,0.00030521,5]
[421523877,1777820012000,-160.19,0.0002689,2]
[421523888,1777820012000,-9999.99,0.00027397,2]
[421523908,1777820012000,-5011.0,0.00030136,28]
[421523881,1777820012000,-299.99,0.00027397,12]
[421523886,1777820012000,-1596.59,0.00027397,2]
[421523883,1777820012000,-584.92,0.00027397,5]
[421523882,1777820012000,-935.63,0.00027397,2]
[421523887,1777820012000,-999.99,0.00027397,2]
[421523885,1777820012000,-150.99,0.00027397,2]
[421523884,1777820012000,-3557.88,0.00027397,20]
[421523890,1777820012000,-386.96033337,0.00028983,2]
[421523889,1777820012000,-188.98,0.00028139,2]
[421523900,1777820012000,-500.0,0.00029973,5]
[421523880,1777820012000,-541.0,0.00027137,2]
[421523893,1777820012000,-188.98,0.00029362,2]
[421523901,1777820012000,-500.0,0.00029973,2]
[421523913,1777820012000,-1000.0,0.00030521,2]
[421523902,1777820012000,-500.47150084,0.00029973,5]
[421523903,1777820012000,-205.2510308,0.00029973,5]
[421523898,1777820012000,-500.0,0.00029973,5]
[421523899,1777820012000,-501.12537306,0.00029973,5]
[421523914,1777820012000,-1000.0,0.00030521,5]
[421523894,1777820012000,-160.0,0.00029534,14]
[421523895,1777820012000,-672.803426,0.00029534,14]
[421523891,1777820012000,-151.0,0.00028983,2]
[421523896,1777820012000,-1185.606852,0.00029534,14]
[421523897,1777820012000,-12244.9266118,0.000297,2]
[421523892,1777820012000,-180.42,0.00029093,2]
[421523952,1777820013000,-180.43,0.00032887,2]
[421523954,1777820013000,-188.98,0.00033032,2]
[421523953,1777820013000,-541.0,0.00033011,8]
[421523955,1777820013000,-1849.385321,0.0003313,120]
[421523949,1777820013000,-2776.8771165,0.00032787,2]
[421523958,1777820013000,-1600.0,0.00033411,120]
[421523957,1777820013000,-296.054974,0.00033373,21]
[421523951,1777820013000,-194.95595753,0.00032877,30]
[421523959,1777820013000,-260.28,0.00033466,120]
[421523956,1777820013000,-2763.17976,0.00033373,120]
[421523950,1777820013000,-150.0,0.00032801,2]
[421523940,1777820013000,-280.51458286,0.00032068,5]
[421523947,1777820013000,-1480.18006724,0.00032618,2]
[421523944,1777820013000,-2041.7981707,0.00032616,5]
[421523946,1777820013000,-2029.30098551,0.00032618,2]
[421523942,1777820013000,-317.84043674,0.0003224,2]
[421523945,1777820013000,-767.83238897,0.00032618,2]
[421523941,1777820013000,-1219.48541714,0.00032068,5]
[421523943,1777820013000,-150.0,0.00032461,2]
[421523939,1777820013000,-160.0,0.00031843,60]
[421523937,1777820013000,-500.0,0.00031843,60]
[421523960,1777820013000,-150.0,0.0003362,2]
[421523948,1777820013000,-260.28,0.00032644,120]
[421523961,1777820013000,-2776.8771165,0.00033806,2]
[421523938,1777820013000,-578.4153998,0.00031843,60]
[421523964,1777820013000,-2116.972961,0.00033823,21]
[421523985,1777820013000,-500.0,0.00034999,60]
[421523983,1777820013000,-91.3514108,0.00034997,14]
[421523986,1777820013000,-2917.22757855,0.00035,120]
[421523982,1777820013000,-478.62,0.00034916,2]
[421523981,1777820013000,-568.94,0.00034915,2]
[421523984,1777820013000,-59.6485892,0.00034997,14]
[421523962,1777820013000,-160.0,0.00033823,21]
[421523980,1777820013000,-571.19,0.00034915,2]
[421523975,1777820013000,-3233.368,0.00034712,39]
[421523976,1777820013000,-150.0,0.00034779,2]
[421523978,1777820013000,-275.65,0.00034871,2]
[421523979,1777820013000,-1682.008565,0.00034904,21]
[421523974,1777820013000,-166.26,0.00034463,2]
[421523972,1777820013000,-260.28,0.00034288,120]
[421523973,1777820013000,-294.47,0.000343,6]
[421523971,1777820013000,-4277.31344172,0.00034235,2]
[421523970,1777820013000,-151.0,0.00034094,2]
[421523968,1777820013000,-151.0,0.00034093,2]
[421523969,1777820013000,-151.0,0.00034093,2]
[421523963,1777820013000,-1138.48648,0.00033823,21]
[421523966,1777820013000,-151.0,0.00034093,2]
[421523967,1777820013000,-151.0,0.00034093,2]
[421523965,1777820013000,-151.0,0.00034054,7]
[421523977,1777820013000,-2776.8771165,0.00034825,2]
[421524023,1777820014000,-556.0,0.00035966,10]
[421524024,1777820014000,-556.0,0.00035966,10]
[421524027,1777820014000,-556.0,0.00035966,10]
[421524031,1777820014000,-556.0,0.00035966,10]
[421524019,1777820014000,-556.0,0.00035966,10]
[421524020,1777820014000,-556.0,0.00035966,10]
[421524021,1777820014000,-556.0,0.00035966,10]
[421524010,1777820014000,-260.28,0.00035932,120]
[421524016,1777820014000,-500.0,0.00035966,10]
[421524022,1777820014000,-556.0,0.00035966,10]
[421524026,1777820014000,-556.0,0.00035966,10]
[421524040,1777820014000,-556.0,0.00035966,10]
[421524030,1777820014000,-500.0,0.00035966,10]
[421524029,1777820014000,-556.0,0.00035966,10]
[421524033,1777820014000,-556.0,0.00035966,10]
[421524043,1777820014000,-500.0,0.00035966,10]
[421524034,1777820014000,-273.8980758,0.00035966,10]
[421524036,1777820014000,-556.0,0.00035966,10]
[421524032,1777820014000,-500.0,0.00035966,10]
[421524035,1777820014000,-556.0,0.00035966,10]
[421524037,1777820014000,-556.0,0.00035966,10]
[421524038,1777820014000,-500.0,0.00035966,10]
[421524015,1777820014000,-500.0,0.00035966,10]
[421524041,1777820014000,-500.0,0.00035966,10]
[421524028,1777820014000,-500.0,0.00035966,10]
[421524018,1777820014000,-150.0,0.00035966,2]
[421524007,1777820014000,-2776.8771165,0.00035844,2]
[421524014,1777820014000,-556.0,0.00035966,10]
[421523989,1777820014000,-151.0,0.00035,7]
[421523988,1777820014000,-28210.0,0.00035,7]
[421523990,1777820014000,-151.0,0.00035,7]
[421523996,1777820014000,-661.0,0.00035063,5]
[421523987,1777820014000,-61128.25751699,0.00035,120]
[421523991,1777820014000,-151.0,0.00035,7]
[421523997,1777820014000,-260.28,0.0003511,120]
[421523992,1777820014000,-151.0,0.00035,7]
[421523993,1777820014000,-151.0,0.00035,7]
[421523994,1777820014000,-151.0,0.00035,7]
[421523995,1777820014000,-152.299572,0.00035,7]
[421523999,1777820014000,-495.62,0.00035347,2]
[421524017,1777820014000,-363.01114122,0.00035966,10]
[421524000,1777820014000,-153.0,0.00035364,7]
[421523998,1777820014000,-1852.42,0.00035207,2]
[421524003,1777820014000,-639.22,0.00035737,2]
[421524042,1777820014000,-500.0,0.00035966,10]
[421524005,1777820014000,-183.66,0.00035738,2]
[421524002,1777820014000,-152.02,0.00035682,2]
[421524008,1777820014000,-4277.31344172,0.00035853,2]
[421524004,1777820014000,-825.0,0.00035737,5]
[421524006,1777820014000,-393.19,0.00035738,2]
[421524009,1777820014000,-166.26,0.00035885,2]
[421524013,1777820014000,-500.0,0.00035966,10]
[421524011,1777820014000,-151.0,0.00035956,7]
[421524012,1777820014000,-151.0,0.00035956,7]
[421524001,1777820014000,-1534.0,0.00035364,7]
[421524039,1777820014000,-500.0,0.00035966,10]
[421524025,1777820014000,-556.0,0.00035966,10]
[421524044,1777820014000,-316.8078635,0.00035966,10]
[421524073,1777820014000,-556.0,0.00035966,10]
[421524079,1777820014000,-150.0,0.00035975,7]
[421524078,1777820014000,-150.0,0.00035975,7]
[421524076,1777820014000,-150.0,0.00035975,30]
[421524077,1777820014000,-216.83912454,0.00035975,7]
[421524075,1777820014000,-151.0,0.00035966,7]
[421524083,1777820014000,-150.0,0.00035975,7]
[421524082,1777820014000,-150.0,0.00035975,7]
[421524093,1777820014000,-2921.7,0.00036385,10]
[421524094,1777820014000,-150.0,0.00036385,7]
[421524085,1777820014000,-150.0,0.00035975,7]
[421524084,1777820014000,-201.62967173,0.00035975,7]
[421524081,1777820014000,-150.0,0.00035975,7]
[421524086,1777820014000,-150.0,0.00035975,7]
[421524090,1777820014000,-150.0,0.0003618,7]
[421524089,1777820014000,-150.0,0.00036078,7]
[421524091,1777820014000,-150.0,0.00036283,7]
[421524088,1777820014000,-163.76719215,0.00036059,3]
[421524096,1777820014000,-150.0,0.00036488,7]
[421524095,1777820014000,-1600.0,0.00036449,120]
[421524097,1777820014000,-150.0,0.00036546,30]
[421524100,1777820014000,-207.921945,0.00036576,7]
[421524098,1777820014000,-151.0,0.00036576,7]
[421524099,1777820014000,-151.0,0.00036576,7]
[421524101,1777820014000,-150.0,0.0003659,7]
[421524045,1777820014000,-556.0,0.00035966,10]
[421524087,1777820014000,-163.76719214,0.00036059,3]
[421524071,1777820014000,-250.89695586,0.00035966,10]
[421524092,1777820014000,-150.0,0.00036339,7]
[421524074,1777820014000,-573.39523532,0.00035966,10]
[421524069,1777820014000,-500.0,0.00035966,10]
[421524053,1777820014000,-150.0,0.00035966,10]
[421524056,1777820014000,-500.0,0.00035966,10]
[421524055,1777820014000,-273.72753334,0.00035966,10]
[421524051,1777820014000,-150.0,0.00035966,10]
[421524047,1777820014000,-500.0,0.00035966,10]
[421524048,1777820014000,-556.0,0.00035966,10]
[421524050,1777820014000,-500.0,0.00035966,10]
[421524049,1777820014000,-500.0,0.00035966,10]
[421524052,1777820014000,-500.0,0.00035966,10]
[421524054,1777820014000,-500.0,0.00035966,10]
[421524057,1777820014000,-500.0,0.00035966,10]
[421524058,1777820014000,-500.0,0.00035966,10]
[421524046,1777820014000,-175.81674356,0.00035966,10]
[421524059,1777820014000,-500.0,0.00035966,10]
[421524060,1777820014000,-556.0,0.00035966,10]
[421524080,1777820014000,-215.37855506,0.00035975,7]
[421524070,1777820014000,-500.0,0.00035966,10]
[421524062,1777820014000,-500.0,0.00035966,10]
[421524066,1777820014000,-500.0,0.00035966,10]
[421524068,1777820014000,-556.0,0.00035966,10]
[421524072,1777820014000,-556.0,0.00035966,10]
[421524064,1777820014000,-500.0,0.00035966,10]
[421524061,1777820014000,-500.0,0.00035966,10]
[421524063,1777820014000,-500.0,0.00035966,10]
[421524067,1777820014000,-500.0,0.00035966,10]
[421524065,1777820014000,-500.0,0.00035966,10]
[421524135,1777820015000,-19413.02267407,0.00037052,5]
[421524138,1777820015000,-150.0,0.00037117,30]
[421524141,1777820015000,-150.0,0.00037308,7]
[421524142,1777820015000,-150.0,0.00037308,7]
[421524134,1777820015000,-195.910297,0.00037052,7]
[421524137,1777820015000,-150.0,0.00037103,7]
[421524133,1777820015000,-305.0,0.00037042,30]
[421524132,1777820015000,-330.0,0.00037042,30]
[421524131,1777820015000,-150.0,0.00037,7]
[421524139,1777820015000,-150.0,0.00037205,7]
[421524136,1777820015000,-150.0,0.00037066,7]
[421524140,1777820015000,-166.26,0.00037307,2]
[421524149,1777820015000,-1267.0,0.00037486,2]
[421524147,1777820015000,-151.0,0.00037485,7]
[421524145,1777820015000,-4277.31344172,0.0003747,2]
[421524146,1777820015000,-151.0,0.00037485,7]
[421524150,1777820015000,-274.0,0.00037486,2]
[421524148,1777820015000,-151.882,0.00037486,2]
[421524152,1777820015000,-150.0,0.00037513,7]
[421524151,1777820015000,-217.0,0.00037486,2]
[421524153,1777820015000,-150.0,0.00037574,7]
[421524154,1777820015000,-260.28,0.00037575,120]
[421524155,1777820015000,-150.0,0.00037615,7]
[421524156,1777820015000,-200.0,0.00037688,10]
[421524143,1777820015000,-150.0,0.0003741,7]
[421524144,1777820015000,-150.0,0.00037429,7]
[421524124,1777820015000,-2776.8771165,0.00036863,2]
[421524160,1777820015000,-150.0,0.0003782,7]
[421524120,1777820015000,-1550.0,0.00036789,2]
[421524104,1777820015000,-151.0,0.00036665,7]
[421524105,1777820015000,-151.0,0.00036665,7]
[421524106,1777820015000,-151.0,0.00036665,7]
[421524103,1777820015000,-151.0,0.00036665,7]
[421524102,1777820015000,-150.0,0.00036642,7]
[421524108,1777820015000,-56045.0830206,0.00036665,2]
[421524107,1777820015000,-566.4106673,0.00036665,2]
[421524109,1777820015000,-150.0,0.00036693,7]
[421524111,1777820015000,-260.28,0.00036753,120]
[421524116,1777820015000,-1550.0,0.00036789,2]
[421524110,1777820015000,-150.0,0.00036702,7]
[421524115,1777820015000,-1550.0,0.00036789,2]
[421524126,1777820015000,-151.0,0.00036932,7]
[421524112,1777820015000,-150.0,0.00036775,7]
[421524113,1777820015000,-1550.0,0.00036789,2]
[421524114,1777820015000,-1550.0,0.00036789,2]
[421524119,1777820015000,-1550.0,0.00036789,2]
[421524130,1777820015000,-150.0,0.00036975,7]
[421524129,1777820015000,-2820.42618227,0.00036955,2]
[421524121,1777820015000,-1550.0,0.00036789,2]
[421524118,1777820015000,-1550.0,0.00036789,2]
[421524122,1777820015000,-1095.0,0.00036789,2]
[421524128,1777820015000,-275.65,0.00036942,2]
[421524127,1777820015000,-151.0,0.00036932,7]
[421524123,1777820015000,-150.0,0.00036795,7]
[421524125,1777820015000,-150.0,0.00036898,7]
[421524117,1777820015000,-1550.0,0.00036789,2]
[421524158,1777820015000,-150.0,0.00037718,7]
[421524168,1777820015000,-1962.812,0.00037905,2]
[421524157,1777820015000,-150.0,0.00037688,30]
[421524191,1777820015000,-195.53630043,0.00038356,30]
[421524194,1777820015000,-350.0,0.00038387,3]
[421524192,1777820015000,-150.0,0.00038374,7]
[421524193,1777820015000,-1036.19241,0.00038379,21]
[421524199,1777820015000,-151.0,0.000385,30]
[421524195,1777820015000,-260.28,0.00038397,120]
[421524196,1777820015000,-150.0,0.00038435,7]
[421524198,1777820015000,-151.0,0.000385,30]
[421524197,1777820015000,-22991.0,0.000385,120]
[421524200,1777820015000,-151.0,0.000385,30]
[421524202,1777820015000,-150.0,0.00038538,7]
[421524201,1777820015000,-150.0,0.00038519,7]
[421524205,1777820015000,-192.0,0.00038615,2]
[421524210,1777820015000,-1889.70011883,0.0003873,2]
[421524204,1777820015000,-236.0,0.00038615,2]
[421524206,1777820015000,-150.0,0.0003864,7]
[421524209,1777820015000,-166.26,0.00038729,2]
[421524203,1777820015000,-1000.0,0.000386,2]
[421524207,1777820015000,-150.0,0.0003864,7]
[421524208,1777820015000,-243.01,0.00038657,2]
[421524213,1777820015000,-2597.4262251,0.00038771,2]
[421524212,1777820015000,-500.0,0.0003876,7]
[421524215,1777820015000,-150.0,0.00038831,120]
[421524214,1777820015000,-150.0,0.000388,10]
[421524159,1777820015000,-150.0,0.00037792,7]
[421524190,1777820015000,-150.0,0.00038333,7]
[421524189,1777820015000,-900.0,0.00038293,21]
[421524211,1777820015000,-150.0,0.00038743,7]
[421524183,1777820015000,-719.205402,0.00038099,21]
[421524187,1777820015000,-150.0,0.00038259,120]
[421524165,1777820015000,-500.0,0.000379,7]
[421524162,1777820015000,-500.0,0.000379,7]
[421524166,1777820015000,-294.47,0.000379,20]
[421524167,1777820015000,-500.0,0.000379,13]
[421524163,1777820015000,-500.0,0.000379,7]
[421524164,1777820015000,-500.0,0.000379,7]
[421524176,1777820015000,-518.58739321,0.00038009,3]
[421524216,1777820015000,-150.0,0.00038845,7]
[421524173,1777820015000,-150.0,0.00037974,7]
[421524172,1777820015000,-150.0,0.00037974,7]
[421524177,1777820015000,-150.0,0.00038025,7]
[421524169,1777820015000,-152.02,0.00037913,2]
[421524161,1777820015000,-2776.8771165,0.00037882,2]
[421524178,1777820015000,-470.74,0.00038034,30]
[421524171,1777820015000,-180.42,0.00037947,2]
[421524182,1777820015000,-350.0,0.00038063,4]
[421524179,1777820015000,-3013.47,0.00038034,30]
[421524186,1777820015000,-150.0,0.0003823,7]
[421524185,1777820015000,-150.0,0.00038156,7]
[421524184,1777820015000,-150.0,0.00038128,7]
[421524181,1777820015000,-500.0,0.00038063,30]
[421524180,1777820015000,-973.06,0.00038034,30]
[421524174,1777820015000,-150.0,0.00037974,7]
[421524170,1777820015000,-150.0,0.00037923,7]